[Event "Titled Tuesday Blitz January 31 Late 2023"]
[White "Papasimakopoulos, Alexandros"]
[Black "Martynov, Pavel"]
[WhiteFideId "4244125"]
[BlackFideId "4101260"]
[WhiteElo "2401"]
[BlackElo "2414"]
[Result "1-0"]
[Round "09"]
[TimeControl "180+2"]
[Date "2023.01.31"]
[WhiteClock "0:00:04"]
[BlackClock "0:00:01"]

1. d4 {[%clk 0:03:00]}  d5 {[%clk 0:02:59]} 2. c4 {[%clk 0:03:01]}  e6 {[%clk 0:02:59]} 3. Nc3 {[%clk 0:03:01]}  c5 {[%clk 0:02:59]} 4. cxd5 {[%clk 0:02:57]}  exd5 {[%clk 0:02:59]} 5. Nf3 {[%clk 0:02:57]}  Nc6 {[%clk 0:03:00]} 6. Bg5 {[%clk 0:02:57]}  Be7 {[%clk 0:03:00]} 7. Bxe7 {[%clk 0:02:57]}  Ngxe7 {[%clk 0:03:00]} 8. e3 {[%clk 0:02:57]}  c4 {[%clk 0:03:01]} 9. Be2 {[%clk 0:02:55]}  O-O {[%clk 0:03:01]} 10. O-O {[%clk 0:02:56]}  Rb8 {[%clk 0:03:01]} 11. e4 {[%clk 0:02:45]}  b5 {[%clk 0:02:58]} 12. a3 {[%clk 0:02:38]}  Na5 {[%clk 0:02:53]} 13. Nd2 {[%clk 0:02:24]}  Be6 {[%clk 0:02:42]} 14. exd5 {[%clk 0:02:05]}  Nxd5 {[%clk 0:02:39]} 15. Bf3 {[%clk 0:02:05]}  h6 {[%clk 0:02:15]} 16. Nde4 {[%clk 0:01:51]}  Nb3 {[%clk 0:02:12]} 17. Rb1 {[%clk 0:01:50]}  Nf4 {[%clk 0:02:05]} 18. g3 {[%clk 0:01:14]}  Nh3+ {[%clk 0:01:14]} 19. Kh1 {[%clk 0:01:14]}  Nxd4 {[%clk 0:01:15]} 20. Bg2 {[%clk 0:01:14]}  Ng5 {[%clk 0:00:58]} 21. Nc5 {[%clk 0:01:00]}  Rc8 {[%clk 0:00:26]} 22. Nxe6 {[%clk 0:00:57]}  Ngxe6 {[%clk 0:00:26]} 23. f4 {[%clk 0:00:54]}  Nb3 {[%clk 0:00:20]} 24. f5 {[%clk 0:00:42]}  Qxd1 {[%clk 0:00:19]} 25. Rbxd1 {[%clk 0:00:40]}  Nec5 {[%clk 0:00:19]} 26. Nxb5 {[%clk 0:00:36]}  Nd3 {[%clk 0:00:19]} 27. Nd6 {[%clk 0:00:35]}  Nxb2 {[%clk 0:00:11]} 28. Nxc8 {[%clk 0:00:24]}  Rxc8 {[%clk 0:00:12]} 29. Rb1 {[%clk 0:00:19]}  c3 {[%clk 0:00:11]} 30. Bd5 {[%clk 0:00:17]}  Nd2 {[%clk 0:00:11]} 31. Bb7 {[%clk 0:00:13]}  Rc7 {[%clk 0:00:10]} 32. Ba6 {[%clk 0:00:11]}  Nxb1 {[%clk 0:00:08]} 33. Rxb1 {[%clk 0:00:10]}  c2 {[%clk 0:00:09]} 34. Rc1 {[%clk 0:00:11]}  Rc3 {[%clk 0:00:04]} 35. Bb5 {[%clk 0:00:08]}  Nd1 {[%clk 0:00:03]} 36. Kg1 {[%clk 0:00:07]}  Ne3 {[%clk 0:00:03]} 37. Kf2 {[%clk 0:00:07]}  Nxf5 {[%clk 0:00:04]} 38. Ke1 {[%clk 0:00:06]}  Nd4 {[%clk 0:00:03]} 39. Kd2 {[%clk 0:00:06]}  Rc5 {[%clk 0:00:04]} 40. Ba4 {[%clk 0:00:05]}  Ra5 {[%clk 0:00:03]} 41. Bxc2 {[%clk 0:00:05]}  Nxc2 {[%clk 0:00:03]} 42. Rxc2 {[%clk 0:00:05]}  Rxa3 {[%clk 0:00:04]} 43. Ke2 {[%clk 0:00:06]}  g6 {[%clk 0:00:05]} 44. Kf2 {[%clk 0:00:06]}  Kg7 {[%clk 0:00:05]} 45. Kg2 {[%clk 0:00:06]}  h5 {[%clk 0:00:06]} 46. Kh3 {[%clk 0:00:07]}  a5 {[%clk 0:00:06]} 47. Kh4 {[%clk 0:00:07]}  Ra1 {[%clk 0:00:06]} 48. Rc7 {[%clk 0:00:07]}  Ra4+ {[%clk 0:00:06]} 49. Kh3 {[%clk 0:00:07]}  Ra2 {[%clk 0:00:05]} 50. Ra7 {[%clk 0:00:07]}  a4 {[%clk 0:00:06]} 51. Ra6 {[%clk 0:00:08]}  a3 {[%clk 0:00:06]} 52. Ra7 {[%clk 0:00:08]}  Kf6 {[%clk 0:00:05]} 53. Ra5 {[%clk 0:00:08]}  Ra1 {[%clk 0:00:04]} 54. Ra7 {[%clk 0:00:08]}  a2 {[%clk 0:00:04]} 55. Kh4 {[%clk 0:00:08]}  Kf5 {[%clk 0:00:03]} 56. Rxf7+ {[%clk 0:00:07]}  Ke4 {[%clk 0:00:03]} 57. Ra7 {[%clk 0:00:06]}  Kd4 {[%clk 0:00:03]} 58. Kg5 {[%clk 0:00:06]}  Kc3 {[%clk 0:00:02]} 59. Kxg6 {[%clk 0:00:06]}  Kb3 {[%clk 0:00:03]} 60. Kxh5 {[%clk 0:00:04]}  Rh1 {[%clk 0:00:03]} 61. h4 {[%clk 0:00:05]}  a1=Q {[%clk 0:00:02]} 62. Rxa1 {[%clk 0:00:05]}  Rxa1 {[%clk 0:00:03]} 63. g4 {[%clk 0:00:05]}  Kc4 {[%clk 0:00:03]} 64. Kg6 {[%clk 0:00:04]}  Kd5 {[%clk 0:00:04]} 65. h5 {[%clk 0:00:04]}  Ke6 {[%clk 0:00:04]} 66. h6 {[%clk 0:00:05]}  Rg1 {[%clk 0:00:02]} 67. g5 {[%clk 0:00:05]}  Rh1 {[%clk 0:00:02]} 68. h7 {[%clk 0:00:05]}  Ke7 {[%clk 0:00:02]} 69. Kg7 {[%clk 0:00:05]}  Rh2 {[%clk 0:00:01]} 70. h8=Q {[%clk 0:00:03]}  Rxh8 {[%clk 0:00:01]} 71. Kxh8 {[%clk 0:00:04]} 1-0


[Site "https://www.chess.com"]

[Event "Titled Tuesday Blitz January 31 Late 2023"]
[White "Krysa, Leandro"]
[Black "Moral Garcia, Serafin"]
[WhiteFideId "116807"]
[BlackFideId "2201925"]
[WhiteElo "2541"]
[BlackElo "2238"]
[Result "1/2-1/2"]
[Round "09"]
[TimeControl "180+2"]
[Date "2023.01.31"]
[WhiteClock "0:00:07"]
[BlackClock "0:00:20"]

1. e4 {[%clk 0:03:00]}  e5 {[%clk 0:02:55]} 2. Nf3 {[%clk 0:03:00]}  Nf6 {[%clk 0:02:48]} 3. Nxe5 {[%clk 0:02:58]}  d6 {[%clk 0:02:48]} 4. Nf3 {[%clk 0:02:58]}  Nxe4 {[%clk 0:02:47]} 5. Bd3 {[%clk 0:02:59]}  Nf6 {[%clk 0:02:46]} 6. O-O {[%clk 0:02:58]}  Be7 {[%clk 0:02:45]} 7. c3 {[%clk 0:02:58]}  O-O {[%clk 0:02:40]} 8. Bc2 {[%clk 0:02:58]}  d5 {[%clk 0:02:38]} 9. d4 {[%clk 0:02:56]}  Bg4 {[%clk 0:02:37]} 10. Nbd2 {[%clk 0:02:47]}  Nbd7 {[%clk 0:02:33]} 11. Re1 {[%clk 0:02:44]}  c6 {[%clk 0:02:32]} 12. Nf1 {[%clk 0:02:40]}  Bd6 {[%clk 0:02:31]} 13. Ng3 {[%clk 0:02:37]}  Qc7 {[%clk 0:02:20]} 14. h3 {[%clk 0:02:30]}  Bxh3 {[%clk 0:02:08]} 15. gxh3 {[%clk 0:02:21]}  Bxg3 {[%clk 0:02:07]} 16. fxg3 {[%clk 0:02:15]}  Qxg3+ {[%clk 0:02:06]} 17. Kh1 {[%clk 0:02:15]}  Qxh3+ {[%clk 0:02:03]} 18. Nh2 {[%clk 0:02:13]}  Rfe8 {[%clk 0:01:59]} 19. Bf4 {[%clk 0:02:08]}  Rxe1+ {[%clk 0:01:55]} 20. Qxe1 {[%clk 0:02:08]}  Re8 {[%clk 0:01:56]} 21. Qf1 {[%clk 0:01:47]}  Qxf1+ {[%clk 0:01:54]} 22. Nxf1 {[%clk 0:01:44]}  Re2 {[%clk 0:01:49]} 23. Bd2 {[%clk 0:01:32]}  Ne4 {[%clk 0:01:46]} 24. Bxe4 {[%clk 0:01:27]}  Rxe4 {[%clk 0:01:45]} 25. Ng3 {[%clk 0:01:22]}  Re6 {[%clk 0:01:40]} 26. Kg2 {[%clk 0:01:14]}  g6 {[%clk 0:01:37]} 27. Bh6 {[%clk 0:01:12]}  f6 {[%clk 0:01:29]} 28. Kf3 {[%clk 0:01:01]}  Kf7 {[%clk 0:01:28]} 29. Rh1 {[%clk 0:01:00]}  g5 {[%clk 0:01:25]} 30. Bxg5 {[%clk 0:00:38]}  fxg5 {[%clk 0:01:24]} 31. Rxh7+ {[%clk 0:00:38]}  Ke8 {[%clk 0:01:24]} 32. Nf5 {[%clk 0:00:37]}  Rf6 {[%clk 0:01:18]} 33. Kg4 {[%clk 0:00:34]}  Kd8 {[%clk 0:01:19]} 34. Kxg5 {[%clk 0:00:32]}  Re6 {[%clk 0:01:19]} 35. Rh2 {[%clk 0:00:27]}  Kc7 {[%clk 0:01:15]} 36. Kf4 {[%clk 0:00:27]}  Kd8 {[%clk 0:01:14]} 37. Ne3 {[%clk 0:00:22]}  Kc7 {[%clk 0:01:11]} 38. Ng4 {[%clk 0:00:21]}  Kd8 {[%clk 0:01:08]} 39. Rh8+ {[%clk 0:00:19]}  Kc7 {[%clk 0:01:02]} 40. Rh7 {[%clk 0:00:18]}  Kd6 {[%clk 0:01:01]} 41. Ne3 {[%clk 0:00:18]}  Rf6+ {[%clk 0:00:45]} 42. Nf5+ {[%clk 0:00:16]}  Kc7 {[%clk 0:00:45]} 43. b4 {[%clk 0:00:16]}  a6 {[%clk 0:00:37]} 44. a4 {[%clk 0:00:15]}  b6 {[%clk 0:00:36]} 45. a5 {[%clk 0:00:15]}  bxa5 {[%clk 0:00:36]} 46. bxa5 {[%clk 0:00:16]}  Kd8 {[%clk 0:00:31]} 47. Rh8+ {[%clk 0:00:14]}  Kc7 {[%clk 0:00:31]} 48. Rh7 {[%clk 0:00:15]}  Kd8 {[%clk 0:00:28]} 49. Kg5 {[%clk 0:00:11]}  Re6 {[%clk 0:00:26]} 50. Nh6 {[%clk 0:00:08]}  Kc7 {[%clk 0:00:22]} 51. Nf5 {[%clk 0:00:05]}  Kd8 {[%clk 0:00:21]} 52. Nh4 {[%clk 0:00:04]}  Kc7 {[%clk 0:00:18]} 53. Nf3 {[%clk 0:00:05]}  Kd8 {[%clk 0:00:18]} 54. Rh8+ {[%clk 0:00:05]}  Kc7 {[%clk 0:00:15]} 55. Rh7 {[%clk 0:00:06]}  Kd8 {[%clk 0:00:15]} 56. Kf4 {[%clk 0:00:05]}  Kc7 {[%clk 0:00:15]} 57. Ne5 {[%clk 0:00:05]}  Rd6 {[%clk 0:00:15]} 58. Kf5 {[%clk 0:00:04]}  Kc8 {[%clk 0:00:15]} 59. Nxd7 {[%clk 0:00:03]}  Rxd7 {[%clk 0:00:15]} 60. Rxd7 {[%clk 0:00:03]}  Kxd7 {[%clk 0:00:15]} 61. Kf6 {[%clk 0:00:04]}  Kd6 {[%clk 0:00:16]} 62. Kf7 {[%clk 0:00:04]}  Kd7 {[%clk 0:00:16]} 63. Kf6 {[%clk 0:00:03]}  Kd6 {[%clk 0:00:17]} 64. Kf5 {[%clk 0:00:03]}  Kd7 {[%clk 0:00:16]} 65. Ke5 {[%clk 0:00:04]}  Ke7 {[%clk 0:00:17]} 66. Kf5 {[%clk 0:00:04]}  Kf7 {[%clk 0:00:17]} 67. Ke5 {[%clk 0:00:04]}  Ke7 {[%clk 0:00:17]} 68. Kf4 {[%clk 0:00:04]}  Kf6 {[%clk 0:00:18]} 69. Kg4 {[%clk 0:00:05]}  Kg6 {[%clk 0:00:18]} 70. Kf4 {[%clk 0:00:05]}  Kf6 {[%clk 0:00:18]} 71. Kg4 {[%clk 0:00:06]}  Kg6 {[%clk 0:00:19]} 72. Kf4 {[%clk 0:00:07]}  Kf6 {[%clk 0:00:20]} 1/2-1/2


[Site "https://www.chess.com"]

[Event "Titled Tuesday Blitz January 31 Late 2023"]
[White "Ortega Amarelle, Mariano"]
[Black "Perske, Thore"]
[WhiteFideId "3504301"]
[BlackFideId "12902195"]
[WhiteElo "2472"]
[BlackElo "2448"]
[Result "0-1"]
[Round "09"]
[TimeControl "180+2"]
[Date "2023.01.31"]
[WhiteClock "0:00:05"]
[BlackClock "0:00:13"]

1. e4 {[%clk 0:02:53]}  e6 {[%clk 0:02:59]} 2. d4 {[%clk 0:02:52]}  d5 {[%clk 0:02:59]} 3. e5 {[%clk 0:02:52]}  c5 {[%clk 0:02:59]} 4. c3 {[%clk 0:02:51]}  Qb6 {[%clk 0:02:58]} 5. Nf3 {[%clk 0:02:51]}  Bd7 {[%clk 0:02:56]} 6. Bd3 {[%clk 0:02:50]}  Bb5 {[%clk 0:02:56]} 7. dxc5 {[%clk 0:02:50]}  Bxc5 {[%clk 0:02:52]} 8. b4 {[%clk 0:02:50]}  Bf8 {[%clk 0:02:50]} 9. Be3 {[%clk 0:02:49]}  Qa6 {[%clk 0:02:47]} 10. Bxb5+ {[%clk 0:02:39]}  Qxb5 {[%clk 0:02:48]} 11. a4 {[%clk 0:02:18]}  Qd7 {[%clk 0:02:43]} 12. O-O {[%clk 0:02:14]}  Ne7 {[%clk 0:02:39]} 13. Nbd2 {[%clk 0:01:33]}  Nf5 {[%clk 0:02:35]} 14. Bd4 {[%clk 0:01:33]}  Nc6 {[%clk 0:02:31]} 15. Nb3 {[%clk 0:01:29]}  Be7 {[%clk 0:02:18]} 16. b5 {[%clk 0:01:26]}  Ncxd4 {[%clk 0:02:11]} 17. Nbxd4 {[%clk 0:01:10]}  Nxd4 {[%clk 0:02:05]} 18. cxd4 {[%clk 0:01:11]}  O-O {[%clk 0:02:01]} 19. Qd3 {[%clk 0:00:38]}  Rac8 {[%clk 0:01:56]} 20. Rfc1 {[%clk 0:00:38]}  Rxc1+ {[%clk 0:01:56]} 21. Rxc1 {[%clk 0:00:38]}  Rc8 {[%clk 0:01:56]} 22. Rxc8+ {[%clk 0:00:26]}  Qxc8 {[%clk 0:01:55]} 23. h4 {[%clk 0:00:26]}  Qc1+ {[%clk 0:01:50]} 24. Kh2 {[%clk 0:00:26]}  h5 {[%clk 0:01:31]} 25. g3 {[%clk 0:00:22]}  g6 {[%clk 0:01:30]} 26. Kg2 {[%clk 0:00:22]}  Kf8 {[%clk 0:01:21]} 27. Qd2 {[%clk 0:00:19]}  Qc4 {[%clk 0:01:04]} 28. Qd1 {[%clk 0:00:18]}  Kg7 {[%clk 0:00:58]} 29. Ne1 {[%clk 0:00:17]}  Bb4 {[%clk 0:00:54]} 30. Nc2 {[%clk 0:00:16]}  Bc3 {[%clk 0:00:54]} 31. g4 {[%clk 0:00:15]}  hxg4 {[%clk 0:00:48]} 32. Qxg4 {[%clk 0:00:16]}  Qxa4 {[%clk 0:00:47]} 33. h5 {[%clk 0:00:16]}  Qxc2 {[%clk 0:00:44]} 34. h6+ {[%clk 0:00:11]}  Kh7 {[%clk 0:00:39]} 35. Qg5 {[%clk 0:00:11]}  Qf5 {[%clk 0:00:24]} 36. Qe7 {[%clk 0:00:11]}  Bxd4 {[%clk 0:00:21]} 37. Qf8 {[%clk 0:00:10]}  Qxf2+ {[%clk 0:00:20]} 38. Kh3 {[%clk 0:00:10]}  Qf3+ {[%clk 0:00:20]} 39. Kh2 {[%clk 0:00:10]}  Bxe5+ {[%clk 0:00:20]} 40. Kg1 {[%clk 0:00:10]}  d4 {[%clk 0:00:17]} 41. Qe8 {[%clk 0:00:07]}  d3 {[%clk 0:00:16]} 42. Qd7 {[%clk 0:00:07]}  Kxh6 {[%clk 0:00:14]} 43. Qd8 {[%clk 0:00:06]}  Kg7 {[%clk 0:00:14]} 44. Qd7 {[%clk 0:00:05]}  Bf6 {[%clk 0:00:14]} 45. b6 {[%clk 0:00:05]}  axb6 {[%clk 0:00:13]} 0-1


[Site "https://www.chess.com"]

[Event "Titled Tuesday Blitz January 31 Late 2023"]
[White "Kanakaris, Georgios"]
[Black "Gasparyan, David"]
[WhiteFideId "4209460"]
[BlackFideId "13311980"]
[WhiteElo "2391"]
[BlackElo "2142"]
[Result "1-0"]
[Round "09"]
[TimeControl "180+2"]
[Date "2023.01.31"]
[WhiteClock "0:00:23"]
[BlackClock "0:00:09"]

1. Nf3 {[%clk 0:03:00]}  Nf6 {[%clk 0:02:59]} 2. g3 {[%clk 0:03:00]}  g6 {[%clk 0:03:00]} 3. Bg2 {[%clk 0:03:01]}  Bg7 {[%clk 0:03:01]} 4. O-O {[%clk 0:03:01]}  O-O {[%clk 0:03:01]} 5. d4 {[%clk 0:03:02]}  d5 {[%clk 0:03:00]} 6. c4 {[%clk 0:03:02]}  dxc4 {[%clk 0:03:00]} 7. Na3 {[%clk 0:03:01]}  Nc6 {[%clk 0:03:01]} 8. Nxc4 {[%clk 0:02:59]}  Be6 {[%clk 0:03:01]} 9. b3 {[%clk 0:02:59]}  Bd5 {[%clk 0:02:57]} 10. Bb2 {[%clk 0:02:59]}  a5 {[%clk 0:02:55]} 11. Rc1 {[%clk 0:02:58]}  a4 {[%clk 0:02:54]} 12. bxa4 {[%clk 0:02:56]}  Ne4 {[%clk 0:02:47]} 13. a3 {[%clk 0:02:50]}  Ra6 {[%clk 0:02:40]} 14. Ne3 {[%clk 0:02:47]}  Be6 {[%clk 0:02:24]} 15. Qc2 {[%clk 0:02:44]}  Nf6 {[%clk 0:02:19]} 16. Rfd1 {[%clk 0:02:26]}  Nd5 {[%clk 0:01:45]} 17. Nxd5 {[%clk 0:02:24]}  Qxd5 {[%clk 0:01:45]} 18. Ne5 {[%clk 0:02:20]}  Qb3 {[%clk 0:01:44]} 19. d5 {[%clk 0:01:53]}  Qxc2 {[%clk 0:01:43]} 20. Rxc2 {[%clk 0:01:53]}  Nxe5 {[%clk 0:01:21]} 21. dxe6 {[%clk 0:01:51]}  c6 {[%clk 0:01:19]} 22. exf7+ {[%clk 0:01:44]}  Kxf7 {[%clk 0:01:19]} 23. Bxe5 {[%clk 0:01:32]}  Bxe5 {[%clk 0:01:20]} 24. Rd7 {[%clk 0:01:29]}  Rb8 {[%clk 0:01:11]} 25. Rc4 {[%clk 0:01:28]}  Bd6 {[%clk 0:00:56]} 26. Bh3 {[%clk 0:01:19]}  Bxa3 {[%clk 0:00:48]} 27. Rf4+ {[%clk 0:01:15]}  Kg7 {[%clk 0:00:48]} 28. Be6 {[%clk 0:01:15]}  Bd6 {[%clk 0:00:45]} 29. Rd4 {[%clk 0:00:57]}  Kf6 {[%clk 0:00:43]} 30. Bg4 {[%clk 0:00:52]}  h5 {[%clk 0:00:42]} 31. Bh3 {[%clk 0:00:50]}  Be5 {[%clk 0:00:40]} 32. Re4 {[%clk 0:00:48]}  Bd6 {[%clk 0:00:37]} 33. Re6+ {[%clk 0:00:46]}  Kg5 {[%clk 0:00:37]} 34. f4+ {[%clk 0:00:45]}  Kh6 {[%clk 0:00:37]} 35. f5 {[%clk 0:00:41]}  Rg8 {[%clk 0:00:31]} 36. Rxb7 {[%clk 0:00:38]}  Rxa4 {[%clk 0:00:31]} 37. Kg2 {[%clk 0:00:36]}  Ra5 {[%clk 0:00:25]} 38. f6 {[%clk 0:00:34]}  Re5 {[%clk 0:00:14]} 39. Rxe5 {[%clk 0:00:26]}  Bxe5 {[%clk 0:00:15]} 40. fxe7 {[%clk 0:00:26]}  Re8 {[%clk 0:00:15]} 41. Rd7 {[%clk 0:00:20]}  Bf6 {[%clk 0:00:14]} 42. Rd6 {[%clk 0:00:20]}  Bxe7 {[%clk 0:00:14]} 43. Rxc6 {[%clk 0:00:19]}  Bg5 {[%clk 0:00:12]} 44. Bf5 {[%clk 0:00:19]}  Rxe2+ {[%clk 0:00:12]} 45. Kf3 {[%clk 0:00:19]}  Re3+ {[%clk 0:00:11]} 46. Kf2 {[%clk 0:00:19]}  Re5 {[%clk 0:00:02]} 47. Rxg6+ {[%clk 0:00:19]}  Kh7 {[%clk 0:00:03]} 48. Rxg5+ {[%clk 0:00:19]}  Kh6 {[%clk 0:00:04]} 49. Rg6+ {[%clk 0:00:18]}  Kh7 {[%clk 0:00:04]} 50. Rg5+ {[%clk 0:00:17]}  Kh6 {[%clk 0:00:04]} 51. h4 {[%clk 0:00:16]}  Ra5 {[%clk 0:00:02]} 52. Be4 {[%clk 0:00:15]}  Ra2+ {[%clk 0:00:02]} 53. Ke3 {[%clk 0:00:14]}  Ra3+ {[%clk 0:00:02]} 54. Bd3 {[%clk 0:00:14]}  Ra4 {[%clk 0:00:02]} 55. Re5 {[%clk 0:00:14]}  Rg4 {[%clk 0:00:02]} 56. Rg5 {[%clk 0:00:14]}  Rxg5 {[%clk 0:00:02]} 57. hxg5+ {[%clk 0:00:15]}  Kxg5 {[%clk 0:00:03]} 58. Be2 {[%clk 0:00:15]}  h4 {[%clk 0:00:04]} 59. g4 {[%clk 0:00:15]}  h3 {[%clk 0:00:04]} 60. Kf2 {[%clk 0:00:16]}  Kh4 {[%clk 0:00:04]} 61. Bd1 {[%clk 0:00:15]}  h2 {[%clk 0:00:02]} 62. Kg2 {[%clk 0:00:15]}  h1=Q+ {[%clk 0:00:02]} 63. Kxh1 {[%clk 0:00:16]}  Kg5 {[%clk 0:00:03]} 64. Kg2 {[%clk 0:00:16]}  Kf4 {[%clk 0:00:04]} 65. Kh3 {[%clk 0:00:17]}  Kg5 {[%clk 0:00:05]} 66. Kg3 {[%clk 0:00:17]}  Kg6 {[%clk 0:00:05]} 67. Kh4 {[%clk 0:00:18]}  Kh6 {[%clk 0:00:05]} 68. g5+ {[%clk 0:00:19]}  Kg6 {[%clk 0:00:06]} 69. Kg4 {[%clk 0:00:19]}  Kg7 {[%clk 0:00:07]} 70. Kh5 {[%clk 0:00:20]}  Kh7 {[%clk 0:00:07]} 71. g6+ {[%clk 0:00:21]}  Kg7 {[%clk 0:00:08]} 72. Kg5 {[%clk 0:00:21]}  Kg8 {[%clk 0:00:09]} 73. Kf6 {[%clk 0:00:22]}  Kh8 {[%clk 0:00:08]} 74. g7+ {[%clk 0:00:21]}  Kh7 {[%clk 0:00:09]} 75. Bb3 {[%clk 0:00:22]}  Kh6 {[%clk 0:00:08]} 76. g8=Q {[%clk 0:00:22]}  Kh5 {[%clk 0:00:09]} 77. Qg5# {[%clk 0:00:23]} 1-0


[Site "https://www.chess.com"]

[Event "Titled Tuesday Blitz January 31 Late 2023"]
[White "Tari, Aryan"]
[Black "Vovk, Orest"]
[WhiteFideId "1510045"]
[BlackFideId "14113490"]
[WhiteElo "2642"]
[BlackElo "2315"]
[Result "1-0"]
[Round "09"]
[TimeControl "180+2"]
[Date "2023.01.31"]
[WhiteClock "0:01:35"]
[BlackClock "0:00:03"]

1. e4 {[%clk 0:02:58]}  g5 {[%clk 0:02:59]} 2. d4 {[%clk 0:02:58]}  g4 {[%clk 0:02:58]} 3. Qxg4 {[%clk 0:02:56]}  d5 {[%clk 0:02:57]} 4. Qh4 {[%clk 0:02:38]}  dxe4 {[%clk 0:02:57]} 5. Nc3 {[%clk 0:02:38]}  Nf6 {[%clk 0:02:46]} 6. Bg5 {[%clk 0:02:31]}  Qxd4 {[%clk 0:02:09]} 7. Nge2 {[%clk 0:02:25]}  Qb6 {[%clk 0:01:49]} 8. Bxf6 {[%clk 0:02:01]}  Qxf6 {[%clk 0:01:47]} 9. Qxf6 {[%clk 0:02:01]}  exf6 {[%clk 0:01:47]} 10. Nd5 {[%clk 0:01:54]}  Bd6 {[%clk 0:00:38]} 11. Nxf6+ {[%clk 0:01:53]}  Kf8 {[%clk 0:00:31]} 12. Nxe4 {[%clk 0:01:54]}  Be5 {[%clk 0:00:30]} 13. O-O-O {[%clk 0:01:53]}  Nc6 {[%clk 0:00:30]} 14. f4 {[%clk 0:01:39]}  Bg7 {[%clk 0:00:24]} 15. N2g3 {[%clk 0:01:38]}  Bg4 {[%clk 0:00:21]} 16. Be2 {[%clk 0:01:37]}  Bxe2 {[%clk 0:00:16]} 17. Nxe2 {[%clk 0:01:38]}  Re8 {[%clk 0:00:16]} 18. N2c3 {[%clk 0:01:38]}  f5 {[%clk 0:00:14]} 19. Nc5 {[%clk 0:01:36]}  Bxc3 {[%clk 0:00:14]} 20. bxc3 {[%clk 0:01:36]}  b6 {[%clk 0:00:14]} 21. Na6 {[%clk 0:01:35]}  Re7 {[%clk 0:00:13]} 22. Rhe1 {[%clk 0:01:35]}  Rxe1 {[%clk 0:00:09]} 23. Rxe1 {[%clk 0:01:36]}  Kf7 {[%clk 0:00:10]} 24. Nxc7 {[%clk 0:01:36]}  Rc8 {[%clk 0:00:09]} 25. Nb5 {[%clk 0:01:36]}  Rd8 {[%clk 0:00:07]} 26. Rd1 {[%clk 0:01:33]}  Rxd1+ {[%clk 0:00:07]} 27. Kxd1 {[%clk 0:01:34]}  a6 {[%clk 0:00:07]} 28. Nd4 {[%clk 0:01:32]}  Ne7 {[%clk 0:00:06]} 29. c4 {[%clk 0:01:32]}  Kf6 {[%clk 0:00:05]} 30. a4 {[%clk 0:01:32]}  Nc8 {[%clk 0:00:05]} 31. Ke2 {[%clk 0:01:32]}  Nd6 {[%clk 0:00:05]} 32. Kd3 {[%clk 0:01:33]}  Ne4 {[%clk 0:00:05]} 33. Nb3 {[%clk 0:01:33]}  Ke6 {[%clk 0:00:03]} 34. Kd4 {[%clk 0:01:32]}  Kd6 {[%clk 0:00:03]} 35. g4 {[%clk 0:01:32]}  Nf2 {[%clk 0:00:01]} 36. gxf5 {[%clk 0:01:32]}  Nh3 {[%clk 0:00:02]} 37. c5+ {[%clk 0:01:29]}  bxc5+ {[%clk 0:00:02]} 38. Nxc5 {[%clk 0:01:30]}  Nxf4 {[%clk 0:00:03]} 39. Nxa6 {[%clk 0:01:30]}  Ne2+ {[%clk 0:00:02]} 40. Kc4 {[%clk 0:01:30]}  Ng1 {[%clk 0:00:02]} 41. Nb4 {[%clk 0:01:30]}  Nf3 {[%clk 0:00:02]} 42. a5 {[%clk 0:01:31]}  Nxh2 {[%clk 0:00:02]} 43. a6 {[%clk 0:01:32]}  Kc7 {[%clk 0:00:02]} 44. f6 {[%clk 0:01:32]}  Ng4 {[%clk 0:00:02]} 45. Nd5+ {[%clk 0:01:32]}  Kb8 {[%clk 0:00:02]} 46. Kc5 {[%clk 0:01:32]}  Ne5 {[%clk 0:00:02]} 47. Kd6 {[%clk 0:01:32]}  Nf7+ {[%clk 0:00:02]} 48. Ke7 {[%clk 0:01:32]}  Ng5 {[%clk 0:00:02]} 49. f7 {[%clk 0:01:32]}  Nxf7 {[%clk 0:00:02]} 50. Kxf7 {[%clk 0:01:33]}  Ka7 {[%clk 0:00:02]} 51. Kg7 {[%clk 0:01:32]}  Kxa6 {[%clk 0:00:02]} 52. Kxh7 {[%clk 0:01:32]}  Kb5 {[%clk 0:00:03]} 53. Ne3 {[%clk 0:01:31]}  Kc5 {[%clk 0:00:03]} 54. c4 {[%clk 0:01:32]}  Kd4 {[%clk 0:00:03]} 55. Kg6 {[%clk 0:01:33]}  Kxe3 {[%clk 0:00:02]} 56. c5 {[%clk 0:01:34]}  Kd4 {[%clk 0:00:03]} 57. c6 {[%clk 0:01:35]} 1-0


[Site "https://www.chess.com"]

[Event "Titled Tuesday Blitz January 31 Late 2023"]
[White "Migot, Tangi"]
[Black "Goltsev, Dmitry"]
[WhiteFideId "662445"]
[BlackFideId "24176710"]
[WhiteElo "2373"]
[BlackElo "2269"]
[Result "0-1"]
[Round "09"]
[TimeControl "180+2"]
[Date "2023.01.31"]
[WhiteClock "0:00:27"]
[BlackClock "0:00:49"]

1. d4 {[%clk 0:03:00]}  Nf6 {[%clk 0:02:32]} 2. Nd2 {[%clk 0:03:01]}  e6 {[%clk 0:02:32]} 3. Ngf3 {[%clk 0:03:01]}  c5 {[%clk 0:02:33]} 4. e3 {[%clk 0:02:59]}  Nc6 {[%clk 0:02:34]} 5. a3 {[%clk 0:02:57]}  d5 {[%clk 0:02:34]} 6. c4 {[%clk 0:02:56]}  cxd4 {[%clk 0:02:34]} 7. exd4 {[%clk 0:02:55]}  dxc4 {[%clk 0:02:35]} 8. Nxc4 {[%clk 0:02:55]}  Be7 {[%clk 0:02:35]} 9. Be2 {[%clk 0:02:54]}  O-O {[%clk 0:02:36]} 10. O-O {[%clk 0:02:55]}  b6 {[%clk 0:02:36]} 11. Bf4 {[%clk 0:02:50]}  Bb7 {[%clk 0:02:34]} 12. Rc1 {[%clk 0:02:50]}  Nd5 {[%clk 0:02:34]} 13. Bg3 {[%clk 0:02:48]}  Rc8 {[%clk 0:02:34]} 14. Qa4 {[%clk 0:02:46]}  a6 {[%clk 0:02:33]} 15. Rfd1 {[%clk 0:02:41]}  b5 {[%clk 0:02:27]} 16. Qb3 {[%clk 0:02:41]}  Ba8 {[%clk 0:02:08]} 17. Nce5 {[%clk 0:02:34]}  Na5 {[%clk 0:02:05]} 18. Qa2 {[%clk 0:02:27]}  f6 {[%clk 0:02:05]} 19. Nd3 {[%clk 0:02:25]}  Nc4 {[%clk 0:02:05]} 20. b3 {[%clk 0:02:15]}  Nxa3 {[%clk 0:02:03]} 21. b4 {[%clk 0:02:15]}  Nc4 {[%clk 0:02:03]} 22. Qxa6 {[%clk 0:02:04]}  Bc6 {[%clk 0:02:02]} 23. Qa2 {[%clk 0:01:48]}  Ra8 {[%clk 0:02:01]} 24. Qb1 {[%clk 0:01:44]}  Ra3 {[%clk 0:02:00]} 25. Nc5 {[%clk 0:01:42]}  Qc8 {[%clk 0:01:56]} 26. Bd3 {[%clk 0:01:28]}  f5 {[%clk 0:01:41]} 27. Re1 {[%clk 0:01:14]}  Bxc5 {[%clk 0:01:32]} 28. bxc5 {[%clk 0:01:06]}  Nc3 {[%clk 0:01:27]} 29. Qc2 {[%clk 0:01:02]}  Bd5 {[%clk 0:01:26]} 30. Ne5 {[%clk 0:00:56]}  Qa6 {[%clk 0:01:16]} 31. Bf4 {[%clk 0:00:47]}  Qa8 {[%clk 0:01:09]} 32. f3 {[%clk 0:00:47]}  Rd8 {[%clk 0:01:06]} 33. Bd2 {[%clk 0:00:46]}  Nxe5 {[%clk 0:00:59]} 34. Rxe5 {[%clk 0:00:40]}  b4 {[%clk 0:00:59]} 35. Bxc3 {[%clk 0:00:36]}  Rxc3 {[%clk 0:01:00]} 36. Qd2 {[%clk 0:00:36]}  Qa3 {[%clk 0:00:59]} 37. Ree1 {[%clk 0:00:35]}  Rxd3 {[%clk 0:00:59]} 38. Qg5 {[%clk 0:00:33]}  Rf8 {[%clk 0:00:57]} 39. Ra1 {[%clk 0:00:30]}  Qb2 {[%clk 0:00:52]} 40. Ra7 {[%clk 0:00:29]}  Qxd4+ {[%clk 0:00:52]} 41. Kh1 {[%clk 0:00:29]}  Rd1 {[%clk 0:00:51]} 42. Ra1 {[%clk 0:00:27]}  Rxa1 {[%clk 0:00:49]} 0-1


[Site "https://www.chess.com"]